Workbook

Sheet Sheet1
A1: 순번 | B1: 민원번호 | C1: 보존 기간 | D1: 기록물건 제목 (민원명) | E1: 생산연도 | F1: 상자번호 | G1: 생산부서 | H1: 현 생산부서 | I1: 정리된 서가번호 | J1: 의결종류 (최종결정) | K1: 보존기간 만료일
A2: 1 | B2: 2CA-0808-055290 | C2: 10 | D2: 공유재산 공매 유보 | E2: 2008 | F2: 1 | G2: 행정문화교육민원과 | H2: 국민권익위원회 사무처 고충처리국 행정문화교육민원과 | I2: 1-11-241 | J2: 의견표명 | K2: =LEFT(E2,4)+C2 -> 2018
A3: 2 | B3: 2AA-0802-037461 2AA-0802-043863 | C3: 10 | D3: 폐교 이의 | E3: 2008 | F3: 1 | G3: 행정문화교육민원과 | H3: 국민권익위원회 사무처 고충처리국 행정문화교육민원과 | I3: 1-11-241 | J3: 의견표명 | K3: 2018
A4: 3 | B4: 2CA-0801-006664 | C4: 10 | D4: 정보공개청구 | E4: 2008 | F4: 2 | G4: 행정문화교육민원과 | H4: 국민권익위원회 사무처 고충처리국 행정문화교육민원과 | I4: 1-11-241 | J4: 시정권고 | K4: 2018
A5: 4 | B5: 2AA-0802-042138 2AA-0802-042915 | C5: 10 | D5: 유사경력 인정 | E5: 2008 | F5: 2 | G5: 행정문화교육민원과 | H5: 국민권익위원회 사무처 고충처리국 행정문화교육민원과 | I5: 1-11-241 | J5: 시정권고 | K5: 2018
A6: 5 | B6: 2BA-0803-028293 | C6: 10 | D6: 정보공개청구 | E6: 2008 | F6: 2 | G6: 행정문화교육민원과 | H6: 국민권익위원회 사무처 고충처리국 행정문화교육민원과 | I6: 1-11-241 | J6: 의견표명 | K6: 2018
A7: 6 | B7: 2AA-0805-063633 | C7: 10 | D7: 신고포상금 지급 | E7: 2008 | F7: 2 | G7: 행정문화교육민원과 | H7: 국민권익위원회 사무처 고충처리국 행정문화교육민원과 | I7: 1-11-241 | J7: 시정권고 | K7: 2018
A8: 7 | B8: 2AA-0807-074154 | C8: 10 | D8: 공무상요양비 지급 | E8: 2008 | F8: 2 | G8: 행정문화교육민원과 | H8: 국민권익위원회 사무처 고충처리국 행정문화교육민원과 | I8: 1-11-241 | J8: 의견표명 | K8: 2018
A9: 8 | B9: 2CA-0806-054909 | C9: 10 | D9: 퇴직연금 지급 | E9: 2008 | F9: 2 | G9: 행정문화교육민원과 | H9: 국민권익위원회 사무처 고충처리국 행정문화교육민원과 | I9: 1-11-241 | J9: 의견표명 | K9: 2018
A10: 9 | B10: 2CA-0806-042236 2AA-0806-053997 | C10: 10 | D10: 정보공개청구 | E10: 2008 | F10: 2 | G10: 행정문화교육민원과 | H10: 국민권익위원회 사무처 고충처리국 행정문화교육민원과 | I10: 1-11-241 | J10: 시정권고 | K10: 2018
A11: 10 | B11: 2AA-0807-044208 | C11: 10 | D11: 유사경력 인정 | E11: 2008 | F11: 2 | G11: 행정문화교육민원과 | H11: 국민권익위원회 사무처 고충처리국 행정문화교육민원과 | I11: 1-11-241 | J11: 의견표명 | K11: 2018
A12: 11 | B12: 2AA-0811-061962 | C12: 10 | D12: 공상 인정 | E12: 2008 | F12: 2 | G12: 행정문화교육민원과 | H12: 국민권익위원회 사무처 고충처리국 행정문화교육민원과 | I12: 1-11-241 | J12: 의견표명 | K12: 2018
A13: 12 | B13: 2CA-0704-026413 2CA-0704-047820 | C13: 10 | D13: 체육시설 승계 | E13: 2007 | F13: 6 | G13: 행정문화교육민원과 | H13: 국민권익위원회 사무처 고충처리국 행정문화교육민원과 | I13: 1-11-241 | J13: 시정권고 | K13: 2017
A14: 13 | B14: 2BA-0802-002057 | C14: 10 | D14: 설계용역계약 해제에 따른 손해배상금 | E14: 2008 | F14: 6 | G14: 행정문화교육민원과 | H14: 국민권익위원회 사무처 고충처리국 행정문화교육민원과 | I14: 1-11-241 | J14: 시정권고 | K14: 2018
A15: 14 | B15: 2CA-0804-015019 | C15: 10 | D15: 영업손실 보상 | E15: 2008 | F15: 6 | G15: 행정문화교육민원과 | H15: 국민권익위원회 사무처 고충처리국 행정문화교육민원과 | I15: 1-11-241 | J15: 시정권고 | K15: 2018
A16: 15 | B16: 2BA-0801-057283 | C16: 10 | D16: 주거이전비등 보상 | E16: 2008 | F16: 6 | G16: 행정문화교육민원과 | H16: 국민권익위원회 사무처 고충처리국 행정문화교육민원과 | I16: 1-11-241 | J16: 시정권고 | K16: 2018
A17: 16 | B17: 2CA-0806-005855 | C17: 10 | D17: 공매입찰보증금 반환 | E17: 2008 | F17: 1 | G17: 행정문화교육민원과 | H17: 국민권익위원회 사무처 고충처리국 행정문화교육민원과 | I17: 1-11-241 | J17: 의견표명 | K17: 2018
A18: 17 | B18: 2BA-0703-029606 | C18: 10 | D18: 담배경작면적의 농가단위 피해율 적용에 관한 제도개선 | E18: 2008 | F18: 2 | G18: 행정문화교육민원과 | H18: 국민권익위원회 사무처 고충처리국 행정문화교육민원과 | I18: 1-11-241 | J18: 제도개선 권고 | K18: 2018
A19: 18 | B19: 2CA-0811-029050 | C19: 10 | D19: 전문소방감리업 등록면허 취소계획 철회 | E19: 2008 | F19: 2 | G19: 행정문화교육민원과 | H19: 국민권익위원회 사무처 고충처리국 행정문화교육민원과 | I19: 1-11-241 | J19: 의견표명 | K19: 2018
A20: 19 | B20: 2BA-0807-005670 | C20: 10 | D20: 수해상습지 이주대책사업 개간비 보상 | E20: 2008 | F20: 2 | G20: 행정문화교육민원과 | H20: 국민권익위원회 사무처 고충처리국 행정문화교육민원과 | I20: 1-11-241 | J20: 시정권고 | K20: 2018
A21: 20 | B21: 2BA-0804-008026 | C21: 10 | D21: 통장 자격요건 이의 | E21: 2008 | F21: 2 | G21: 행정문화교육민원과 | H21: 국민권익위원회 사무처 고충처리국 행정문화교육민원과 | I21: 1-11-241 | J21: 시정권고 | K21: 2018
A22: 21 | B22: 2CA-0802-008030 | C22: 10 | D22: 소하천정비공사 편입토지 보상 | E22: 2008 | F22: 2 | G22: 행정문화교육민원과 | H22: 국민권익위원회 사무처 고충처리국 행정문화교육민원과 | I22: 1-11-241 | J22: 시정권고 | K22: 2018
A23: 22 | B23: 2AA-0801-055870 | C23: 10 | D23: 위험물 주유취급소 변경불허가 | E23: 2008 | F23: 2 | G23: 행정문화교육민원과 | H23: 국민권익위원회 사무처 고충처리국 행정문화교육민원과 | I23: 1-11-241 | J23: 의견표명 | K23: 2018
A24: 23 | B24: 2BA-0806-020417 | C24: 10 | D24: 원평119안전센터 이전신축 취소 | E24: 2008 | F24: 3 | G24: 행정문화교육민원과 | H24: 국민권익위원회 사무처 고충처리국 행정문화교육민원과 | I24: 1-11-241 | J24: 의견표명 | K24: 2018
A25: 24 | B25: 2CA-0811-022207 | C25: 10 | D25: 등록사항정정 | E25: 2008 | F25: 4 | G25: 행정문화교육민원과 | H25: 국민권익위원회 사무처 고충처리국 행정문화교육민원과 | I25: 1-11-241 | J25: 시정권고 | K25: 2018
A26: 25 | B26: 2BA-0803-053193 | C26: 10 | D26: 명의신탁자에 대한 과징금감경 | E26: 2008 | F26: 4 | G26: 행정문화교육민원과 | H26: 국민권익위원회 사무처 고충처리국 행정문화교육민원과 | I26: 1-11-241 | J26: 의견표명 | K26: 2018
A27: 26 | B27: 2AA-0801-055996 | C27: 10 | D27: 영농보상 요구 | E27: 2008 | F27: 4 | G27: 행정문화교육민원과 | H27: 국민권익위원회 사무처 고충처리국 행정문화교육민원과 | I27: 1-11-241 | J27: 시정권고 | K27: 2018
A28: 27 | B28: 2BA-0802-001644 | C28: 10 | D28: 지목변경취소 | E28: 2008 | F28: 4 | G28: 행정문화교육민원과 | H28: 국민권익위원회 사무처 고충처리국 행정문화교육민원과 | I28: 1-11-241 | J28: 시정권고 | K28: 2018
A29: 28 | B29: 2AA-0805-009748 | C29: 10 | D29: 손실보상 | E29: 2008 | F29: 4 | G29: 행정문화교육민원과 | H29: 국민권익위원회 사무처 고충처리국 행정문화교육민원과 | I29: 1-11-241 | J29: 시정권고 | K29: 2018
A30: 29 | B30: 2BA-0811-014677 | C30: 10 | D30: 변상금 부과 이의 | E30: 2008 | F30: 4 | G30: 행정문화교육민원과 | H30: 국민권익위원회 사무처 고충처리국 행정문화교육민원과 | I30: 1-11-241 | J30: 시정권고 | K30: 2018
A31: 30 | B31: 2BA-0803-014749 | C31: 10 | D31: 마을안길 보상 및 사용료 지급 | E31: 2008 | F31: 4 | G31: 행정문화교육민원과 | H31: 국민권익위원회 사무처 고충처리국 행정문화교육민원과 | I31: 1-11-241 | J31: 의견표명 | K31: 2018
A32: 31 | B32: 2AA-0804-008765 | C32: 10 | D32: 여권에 기재 영문 성(Surname)변경 | E32: 2008 | F32: 4 | G32: 행정문화교육민원과 | H32: 국민권익위원회 사무처 고충처리국 행정문화교육민원과 | I32: 1-11-241 | J32: 의견표명 | K32: 2018
A33: 32 | B33: 2AA-0803-049778 2BA-0805-031092 | C33: 10 | D33: 주민등록말소처분 취소 등 | E33: 2008 | F33: 5 | G33: 행정문화교육민원과 | H33: 국민권익위원회 사무처 고충처리국 행정문화교육민원과 | I33: 1-11-241 | J33: 시정권고 | K33: 2018
A34: 33 | B34: 2BA-0803-052183 | C34: 10 | D34: 기말시험 결시자 구제 | E34: 2008 | F34: 5 | G34: 행정문화교육민원과 | H34: 국민권익위원회 사무처 고충처리국 행정문화교육민원과 | I34: 1-11-241 | J34: 의견표명 | K34: 2018
A35: 34 | B35: 2BA-0803-003481 | C35: 10 | D35: 대학교 재입학 | E35: 2008 | F35: 5 | G35: 행정문화교육민원과 | H35: 국민권익위원회 사무처 고충처리국 행정문화교육민원과 | I35: 1-11-241 | J35: 의견표명 | K35: 2018
A36: 35 | B36: 2BA-0801-028019 | C36: 10 | D36: 국민연금 노령연금 지급 | E36: 2008 | F36: 5 | G36: 행정문화교육민원과 | H36: 국민권익위원회 사무처 고충처리국 행정문화교육민원과 | I36: 1-11-241 | J36: 시정권고 | K36: 2018
A37: 36 | B37: 2BA-0810-003725 | C37: 10 | D37: 수해복구공사 편입토지 보상 | E37: 2008 | F37: 1 | G37: 행정문화교육민원과 | H37: 국민권익위원회 사무처 고충처리국 행정문화교육민원과 | I37: 1-11-242 | J37: 시정권고 | K37: 2018
A38: 37 | B38: 2BA-0708-043487 | C38: 10 | D38: 이장수고비 등 모금관행 | E38: 2008 | F38: 1 | G38: 행정문화교육민원과 | H38: 국민권익위원회 사무처 고충처리국 행정문화교육민원과 | I38: 1-11-242 | J38: 제도개선 권고 | K38: 2018
A39: 38 | B39: 2BA-0805-024918 | C39: 10 | D39: 통장선거관련 지침위반 | E39: 2008 | F39: 1 | G39: 행정문화교육민원과 | H39: 국민권익위원회 사무처 고충처리국 행정문화교육민원과 | I39: 1-11-242 | J39: 시정권고 | K39: 2018
A40: 39 | B40: 2BA-0701-038004 | C40: 10 | D40: 소하천 편입토지 보상 | E40: 2008 | F40: 1 | G40: 행정문화교육민원과 | H40: 국민권익위원회 사무처 고충처리국 행정문화교육민원과 | I40: 1-11-242 | J40: 시정권고 | K40: 2018
A41: 40 | B41: 2BA-0803-017377 | C41: 10 | D41: 소하천 편입토지 보상 | E41: 2008 | F41: 2 | G41: 행정문화교육민원과 | H41: 국민권익위원회 사무처 고충처리국 행정문화교육민원과 | I41: 1-11-242 | J41: 시정권고 | K41: 2018
A42: 41 | B42: 2AA-0802-050271 | C42: 10 | D42: 영업손실보상 | E42: 2008 | F42: 2 | G42: 행정문화교육민원과 | H42: 국민권익위원회 사무처 고충처리국 행정문화교육민원과 | I42: 1-11-242 | J42: 시정권고 | K42: 2018
A43: 42 | B43: 2CA-0807-031765 | C43: 10 | D43: 소하천 편입토지 보상 | E43: 2008 | F43: 2 | G43: 행정문화교육민원과 | H43: 국민권익위원회 사무처 고충처리국 행정문화교육민원과 | I43: 1-11-242 | J43: 시정권고 | K43: 2018
A44: 43 | B44: 2BA-0802-001771 | C44: 10 | D44: 소하천 점용허가이의 | E44: 2008 | F44: 2 | G44: 행정문화교육민원과 | H44: 국민권익위원회 사무처 고충처리국 행정문화교육민원과 | I44: 1-11-242 | J44: 시정권고 | K44: 2018
A45: 44 | B45: 2BA-0801-041053 | C45: 10 | D45: 이주정착금 | E45: 2008 | F45: 1 | G45: 행정문화교육민원과 | H45: 국민권익위원회 사무처 고충처리국 행정문화교육민원과 | I45: 1-11-242 | J45: 의견표명 | K45: 2018
A46: 45 | B46: 2CA-0906-053197 | C46: 10 | D46: 공유 지분 매입 요청 | E46: 2009 | F46: 1 | G46: 행정문화교육민원과 | H46: 국민권익위원회 사무처 고충처리국 행정문화교육민원과 | I46: 1-11-242 | J46: 의견표명 | K46: 2019
A47: 46 | B47: 2AA-0907-060974 | C47: 10 | D47: 사유지 점용 마을도로의 이설 | E47: 2009 | F47: 1 | G47: 행정문화교육민원과 | H47: 국민권익위원회 사무처 고충처리국 행정문화교육민원과 | I47: 1-11-242 | J47: 시정권고 | K47: 2019
A48: 47 | B48: 2BA-0909-070924 | C48: 10 | D48: 축구선수등록 | E48: 2009 | F48: 1 | G48: 행정문화교육민원과 | H48: 국민권익위원회 사무처 고충처리국 행정문화교육민원과 | I48: 1-11-242 | J48: 시정권고 | K48: 2019
A49: 48 | B49: 2BA-0909-063725 | C49: 10 | D49: 잔여지 매수 | E49: 2009 | F49: 1 | G49: 행정문화교육민원과 | H49: 국민권익위원회 사무처 고충처리국 행정문화교육민원과 | I49: 1-11-242 | J49: 의견표명 | K49: 2019
A50: 49 | B50: 2AA-0906-082297 | C50: 10 | D50: 공개채용시험 구제 | E50: 2009 | F50: 2 | G50: 행정문화교육민원과 | H50: 국민권익위원회 사무처 고충처리국 행정문화교육민원과 | I50: 1-11-242 | J50: 의견표명 | K50: 2019
A51: 50 | B51: 2BA-0907-000469 | C51: 10 | D51: 잔여지매수보상 | E51: 2009 | F51: 2 | G51: 행정문화교육민원과 | H51: 국민권익위원회 사무처 고충처리국 행정문화교육민원과 | I51: 1-11-242 | J51: 시정권고 | K51: 2019
A52: 51 | B52: 2AA-0912-038513 | C52: 10 | D52: 공공기관 발간 책자 내용 정정 | E52: 2009 | F52: 2 | G52: 행정문화교육민원과 | H52: 국민권익위원회 사무처 고충처리국 행정문화교육민원과 | I52: 1-11-242 | J52: 시정권고 | K52: 2019
A53: 52 | B53: 2AA-0906-071438 | C53: 10 | D53: 입국규제자 해제 | E53: 2009 | F53: 3 | G53: 행정문화교육민원과 | H53: 국민권익위원회 사무처 고충처리국 행정문화교육민원과 | I53: 1-11-242 | J53: 의견표명 | K53: 2019
A54: 53 | B54: 2CA-0912-051189 | C54: 10 | D54: 입국규제 배우자 거주사증 발급 | E54: 2009 | F54: 3 | G54: 행정문화교육민원과 | H54: 국민권익위원회 사무처 고충처리국 행정문화교육민원과 | I54: 1-11-242 | J54: 의견표명 | K54: 2019
A55: 54 | B55: 2CA-0912-066408 | C55: 10 | D55: 입국규제 해제 | E55: 2009 | F55: 3 | G55: 행정문화교육민원과 | H55: 국민권익위원회 사무처 고충처리국 행정문화교육민원과 | I55: 1-11-242 | J55: 의견표명 | K55: 2019
A56: 55 | B56: 2BA-0903-024291 | C56: 10 | D56: 이주택지공급대상자 선정 | E56: 2009 | F56: 4 | G56: 행정문화교육민원과 | H56: 국민권익위원회 사무처 고충처리국 행정문화교육민원과 | I56: 1-11-242 | J56: 의견표명 | K56: 2019
A57: 56 | B57: 2BA-0903-024289 | C57: 10 | D57: 이주택지공급대상자 선정 | E57: 2009 | F57: 4 | G57: 행정문화교육민원과 | H57: 국민권익위원회 사무처 고충처리국 행정문화교육민원과 | I57: 1-11-242 | J57: 의견표명 | K57: 2019
A58: 57 | B58: 2CA-0812-070380 | C58: 10 | D58: 건축물 사용승인 거부 | E58: 2009 | F58: 4 | G58: 행정문화교육민원과 | H58: 국민권익위원회 사무처 고충처리국 행정문화교육민원과 | I58: 1-11-242 | J58: 시정권고 | K58: 2019
A59: 58 | B59: 2AA-0902-015302 2BA-0902-058286 | C59: 10 | D59: 등록사항정정 | E59: 2009 | F59: 5 | G59: 행정문화교육민원과 | H59: 국민권익위원회 사무처 고충처리국 행정문화교육민원과 | I59: 1-11-242 | J59: 의견표명 | K59: 2019
A60: 59 | B60: 2BA-0902-001936 | C60: 10 | D60: 지목변경 | E60: 2009 | F60: 5 | G60: 행정문화교육민원과 | H60: 국민권익위원회 사무처 고충처리국 행정문화교육민원과 | I60: 1-11-242 | J60: 의견표명 | K60: 2019
A61: 60 | B61: 2CA-0901-023898 | C61: 10 | D61: 지목변경 | E61: 2009 | F61: 5 | G61: 행정문화교육민원과 | H61: 국민권익위원회 사무처 고충처리국 행정문화교육민원과 | I61: 1-11-242 | J61: 의견표명 | K61: 2019
A62: 61 | B62: 2BA-0903-042912 | C62: 10 | D62: 등록사항정정 | E62: 2009 | F62: 5 | G62: 행정문화교육민원과 | H62: 국민권익위원회 사무처 고충처리국 행정문화교육민원과 | I62: 1-11-242 | J62: 시정권고 | K62: 2019
A63: 62 | B63: 2BA-0907-007857 | C63: 10 | D63: 지목변경 | E63: 2009 | F63: 5 | G63: 행정문화교육민원과 | H63: 국민권익위원회 사무처 고충처리국 행정문화교육민원과 | I63: 1-11-242 | J63: 시정권고 | K63: 2019
A64: 63 | B64: 2BA-0911-000137(2BA-0911-051907병합) | C64: 10 | D64: 지목변경 | E64: 2009 | F64: 5 | G64: 행정문화교육민원과 | H64: 국민권익위원회 사무처 고충처리국 행정문화교육민원과 | I64: 1-11-242 | J64: 의견표명 | K64: 2019
A65: 64 | B65: 2BA-0911-067312 | C65: 10 | D65: 지번변경 | E65: 2009 | F65: 5 | G65: 행정문화교육민원과 | H65: 국민권익위원회 사무처 고충처리국 행정문화교육민원과 | I65: 1-11-242 | J65: 의견표명 | K65: 2019
A66: 65 | B66: 2CA-0912-011473 | C66: 10 | D66: 등록사항정정 | E66: 2009 | F66: 5 | G66: 행정문화교육민원과 | H66: 국민권익위원회 사무처 고충처리국 행정문화교육민원과 | I66: 1-11-242 | J66: 의견표명 | K66: =LEFT(E66,4)+C66 -> 2019
A67: 66 | B67: 2CA-0911-037769 | C67: 10 | D67: 말소된 토지대장 발급 | E67: 2009 | F67: 5 | G67: 행정문화교육민원과 | H67: 국민권익위원회 사무처 고충처리국 행정문화교육민원과 | I67: 1-11-242 | J67: 의견표명 | K67: 2019
A68: 67 | B68: 2AA-0903-020455 | C68: 10 | D68: 공제급여 지급 | E68: 2009 | F68: 6 | G68: 행정문화교육민원과 | H68: 국민권익위원회 사무처 고충처리국 행정문화교육민원과 | I68: 1-11-243 | J68: 시정권고 | K68: 2019
A69: 68 | B69: 2BA-0910-029255 | C69: 10 | D69: 도로사용토지 매수등 | E69: 2009 | F69: 6 | G69: 행정문화교육민원과 | H69: 국민권익위원회 사무처 고충처리국 행정문화교육민원과 | I69: 1-11-243 | J69: 시정권고 | K69: 2019
A70: 69 | B70: 2BA-0908-023401 | C70: 10 | D70: 간이 상수도 시설 매수 | E70: 2009 | F70: 7 | G70: 행정문화교육민원과 | H70: 국민권익위원회 사무처 고충처리국 행정문화교육민원과 | I70: 1-11-243 | J70: 시정권고 | K70: 2019
A71: 70 | B71: 2AA-0901-063509 | C71: 10 | D71: 건축공사대금 지급 | E71: 2009 | F71: 7 | G71: 행정문화교육민원과 | H71: 국민권익위원회 사무처 고충처리국 행정문화교육민원과 | I71: 1-11-243 | J71: 의견표명 | K71: 2019
A72: 71 | B72: 2AA-0909-024927 | C72: 10 | D72: 입찰보증금 환불 | E72: 2009 | F72: 7 | G72: 행정문화교육민원과 | H72: 국민권익위원회 사무처 고충처리국 행정문화교육민원과 | I72: 1-11-243 | J72: 시정권고 | K72: 2019
A73: 72 | B73: 2BA-0903-027840 | C73: 10 | D73: 부가가치세환급거부이의 | E73: 2009 | F73: 8 | G73: 행정문화교육민원과 | H73: 국민권익위원회 사무처 고충처리국 행정문화교육민원과 | I73: 1-11-243 | J73: 시정권고 | K73: 2019
A74: 73 | B74: 2CA-0902-058498 | C74: 10 | D74: 변상금 부과 이의 | E74: 2009 | F74: 8 | G74: 행정문화교육민원과 | H74: 국민권익위원회 사무처 고충처리국 행정문화교육민원과 | I74: 1-11-243 | J74: 의견표명 | K74: 2019
A75: 74 | B75: 2CA-0812-048735 | C75: 10 | D75: 변상금 | E75: 2009 | F75: 8 | G75: 행정문화교육민원과 | H75: 국민권익위원회 사무처 고충처리국 행정문화교육민원과 | I75: 1-11-243 | J75: 의견표명 | K75: 2019
A76: 75 | B76: 2BA-0907-020862 | C76: 10 | D76: 공유재산 매각 이의 | E76: 2009 | F76: 8 | G76: 행정문화교육민원과 | H76: 국민권익위원회 사무처 고충처리국 행정문화교육민원과 | I76: 1-11-243 | J76: 의견표명 | K76: 2019
A77: 76 | B77: 2CA-0912-016940 | C77: 5 | D77: 도로편입 토지 보상 | E77: 2009 | F77: 1 | G77: 행정문화교육민원과 | H77: 국민권익위원회 사무처 고충처리부 사회민원조사단 행정문화교육민원과 | I77: 1-11-245 | J77: 합의해결 | K77: 2014
A78: 77 | B78: 2AA-0912-026078 | C78: 5 | D78: 소방시설관리사 자격시험 관련 답변 | E78: 2009 | F78: 1 | G78: 행정문화교육민원과 | H78: 국민권익위원회 사무처 고충처리부 사회민원조사단 행정문화교육민원과 | I78: 1-11-245 | J78: 합의해결 | K78: 2014
A79: 78 | B79: 2AA-0911-041744 | C79: 5 | D79: 정보공개 이의 | E79: 2009 | F79: 1 | G79: 행정문화교육민원과 | H79: 국민권익위원회 사무처 고충처리부 사회민원조사단 행정문화교육민원과 | I79: 1-11-245 | J79: 합의해결 | K79: 2014
A80: 79 | B80: 2AA-0912-034391 | C80: 5 | D80: 학교법인 보문학원 임원승인 취소처분 부당 | E80: 2009 | F80: 1 | G80: 행정문화교육민원과 | H80: 국민권익위원회 사무처 고충처리부 사회민원조사단 행정문화교육민원과 | I80: 1-11-245 | J80: 각하 | K80: 2014
A81: 80 | B81: 2AA-0912-053173 | C81: 5 | D81: 행정인턴근무자 출장비 지급 | E81: 2009 | F81: 1 | G81: 행정문화교육민원과 | H81: 국민권익위원회 사무처 고충처리부 사회민원조사단 행정문화교육민원과 | I81: 1-11-245 | J81: 합의해결 | K81: 2014
A82: 81 | B82: 2CA-0911-052221 | C82: 5 | D82: 문화재 현상변경허가 | E82: 2009 | F82: 1 | G82: 행정문화교육민원과 | H82: 국민권익위원회 사무처 고충처리부 사회민원조사단 행정문화교육민원과 | I82: 1-11-245 | J82: 취하 | K82: 2014
A83: 82 | B83: 2BA-0912-016664 | C83: 5 | D83: 이장 직권해임 철회 | E83: 2009 | F83: 1 | G83: 행정문화교육민원과 | H83: 국민권익위원회 사무처 고충처리부 사회민원조사단 행정문화교육민원과 | I83: 1-11-245 | J83: 심의안내 | K83: 2014
A84: 83 | B84: 2AA-0911-065963 | C84: 5 | D84: 장애인화장실 이용불편 개선 | E84: 2009 | F84: 1 | G84: 행정문화교육민원과 | H84: 국민권익위원회 사무처 고충처리부 사회민원조사단 행정문화교육민원과 | I84: 1-11-245 | J84: 합의해결 | K84: 2014
A85: 84 | B85: 2AA-0912-036530 | C85: 5 | D85: 수해피해 복구 및 수로 보강 | E85: 2009 | F85: 1 | G85: 행정문화교육민원과 | H85: 국민권익위원회 사무처 고충처리부 사회민원조사단 행정문화교육민원과 | I85: 1-11-245 | J85: 합의해결 | K85: 2014
A86: 85 | B86: 2AA-0912-037641 | C86: 5 | D86: 건축공사 공기연장 간접비 지급 | E86: 2009 | F86: 1 | G86: 행정문화교육민원과 | H86: 국민권익위원회 사무처 고충처리부 사회민원조사단 행정문화교육민원과 | I86: 1-11-245 | J86: 각하 | K86: 2014
A87: 86 | B87: 2AA-0912-023915 | C87: 5 | D87: 정보공개 이의 | E87: 2009 | F87: 1 | G87: 행정문화교육민원과 | H87: 국민권익위원회 사무처 고충처리부 사회민원조사단 행정문화교육민원과 | I87: 1-11-245 | J87: 합의해결 | K87: 2014
A88: 87 | B88: 2BA-0912-074357 | C88: 5 | D88: 마을안길 도로 보상 | E88: 2009 | F88: 1 | G88: 행정문화교육민원과 | H88: 국민권익위원회 사무처 고충처리부 사회민원조사단 행정문화교육민원과 | I88: 1-11-245 | J88: 심의안내 | K88: 2014
A89: 88 | B89: 2AA-0911-074236 | C89: 5 | D89: 도로부지 위험 적치물 제거 | E89: 2009 | F89: 1 | G89: 행정문화교육민원과 | H89: 국민권익위원회 사무처 고충처리부 사회민원조사단 행정문화교육민원과 | I89: 1-11-245 | J89: 합의해결 | K89: 2014
A90: 89 | B90: 2BA-0912-055202 | C90: 5 | D90: 구유재산 변상금부과 이의 | E90: 2009 | F90: 1 | G90: 행정문화교육민원과 | H90: 국민권익위원회 사무처 고충처리부 사회민원조사단 행정문화교육민원과 | I90: 1-11-245 | J90: 기각 | K90: 2014
A91: 90 | B91: 2BA-0912-028922 | C91: 5 | D91: 구유재산 변상금부과 이의 | E91: 2009 | F91: 1 | G91: 행정문화교육민원과 | H91: 국민권익위원회 사무처 고충처리부 사회민원조사단 행정문화교육민원과 | I91: 1-11-245 | J91: 기각 | K91: 2014
A92: 91 | B92: 2AA-0912-037695 | C92: 5 | D92: 가족관계등록부 정정 | E92: 2009 | F92: 1 | G92: 행정문화교육민원과 | H92: 국민권익위원회 사무처 고충처리부 사회민원조사단 행정문화교육민원과 | I92: 1-11-245 | J92: 심의안내 | K92: 2014
A93: 92 | B93: 2BA-0912-053141 | C93: 5 | D93: 공유재산 반환조치 이의 및 사업계획 취소 | E93: 2009 | F93: 1 | G93: 행정문화교육민원과 | H93: 국민권익위원회 사무처 고충처리부 사회민원조사단 행정문화교육민원과 | I93: 1-11-245 | J93: 심의안내 | K93: 2014
A94: 93 | B94: 2AA-0912-079330 | C94: 5 | D94: 실시설계용역 공공 이의 | E94: 2009 | F94: 1 | G94: 행정문화교육민원과 | H94: 국민권익위원회 사무처 고충처리부 사회민원조사단 행정문화교육민원과 | I94: 1-11-245 | J94: 심의안내 | K94: 2014
A95: 94 | B95: 2BA-0911-000169 | C95: 10 | D95: 공유재산 사용 허가 | E95: 2009 | F95: 1 | G95: 행정문화교육민원과 | H95: 국민권익위원회 사무처 고충처리국 행정문화교육민원과 | I95: 1-11-243 | J95: 의견표명 | K95: 2019
A96: 95 | B96: 2AA-0908-013136 | C96: 10 | D96: 변상금 이의 | E96: 2009 | F96: 1 | G96: 행정문화교육민원과 | H96: 국민권익위원회 사무처 고충처리국 행정문화교육민원과 | I96: 1-11-243 | J96: 의견표명 | K96: 2019
A97: 96 | B97: 2AA-0904-038189 | C97: 10 | D97: 체육특기생 이적동의 | E97: 2009 | F97: 2 | G97: 행정문화교육민원과 | H97: 국민권익위원회 사무처 고충처리국 행정문화교육민원과 | I97: 1-11-243 | J97: 시정권고 | K97: 2019
A98: 97 | B98: 2CA-0909-061512 | C98: 10 | D98: 수련회 사고 피해 구제 | E98: 2009 | F98: 2 | G98: 행정문화교육민원과 | H98: 국민권익위원회 사무처 고충처리국 행정문화교육민원과 | I98: 1-11-243 | J98: 시정권고 | K98: 2019
A99: 98 | B99: 2CA-0908-067359 | C99: 10 | D99: 시유지 사용료 부과이의 | E99: 2009 | F99: 2 | G99: 행정문화교육민원과 | H99: 국민권익위원회 사무처 고충처리국 행정문화교육민원과 | I99: 1-11-243 | J99: 시정권고 | K99: 2019
A100: 99 | B100: 2BA-0909-049329 | C100: 10 | D100: LED전광판 철거처분 철회 | E100: 2009 | F100: 2 | G100: 행정문화교육민원과 | H100: 국민권익위원회 사무처 고충처리국 행정문화교육민원과 | I100: 1-11-243 | J100: 시정권고 | K100: 2019
A101: 100 | B101: 2BA-0903-065491 | C101: 10 | D101: 영농손실 보상(재심의) | E101: 2010 | F101: 3 | G101: 행정문화교육민원과 | H101: 국민권익위원회 사무처 고충처리국 행정문화교육민원과 | I101: 1-11-243 | J101: 일부 시정권고, 일부 의견표명, 일부 기각 | K101: 2020
A102: 101 | B102: 2BA-1009-073656 | C102: 10 | D102: 변상금 부과처분 취소 | E102: 2010 | F102: 3 | G102: 행정문화교육민원과 | H102: 국민권익위원회 사무처 고충처리국 행정문화교육민원과 | I102: 1-11-243 | J102: 의견표명 | K102: 2020
A103: 102 | B103: 2BA-1008-022978 | C103: 10 | D103: 정보공개 거부 이의 | E103: 2010 | F103: 3 | G103: 행정문화교육민원과 | H103: 국민권익위원회 사무처 고충처리국 행정문화교육민원과 | I103: 1-11-243 | J103: 시정권고 | K103: 2020
A104: 103 | B104: 2BA-1012-018023 | C104: 10 | D104: 사업시행지구 밖의 건축물 매수보상 | E104: 2010 | F104: 3 | G104: 행정문화교육민원과 | H104: 국민권익위원회 사무처 고충처리국 행정문화교육민원과 | I104: 1-11-243 | J104: 시정권고 | K104: 2020
A105: 104 | B105: 2AA-1003-085040 | C105: 10 | D105: 체육 특기생 이적동의 | E105: 2010 | F105: 3 | G105: 행정문화교육민원과 | H105: 국민권익위원회 사무처 고충처리국 행정문화교육민원과 | I105: 1-11-243 | J105: 시정권고 | K105: 2020
A106: 105 | B106: 2BA-1002-022510 | C106: 10 | D106: 여권발급 제한 해제 | E106: 2010 | F106: 5 | G106: 행정문화교육민원과 | H106: 국민권익위원회 사무처 고충처리부 사회민원조사단 행정문화교육민원과 | I106: 1-11-251 | J106: 의견표명 | K106: 2020
A107: 106 | B107: 2AA-1003-036397 | C107: 10 | D107: 북한산 건조 표고버섯 반입 | E107: 2010 | F107: 5 | G107: 행정문화교육민원과 | H107: 국민권익위원회 사무처 고충처리부 사회민원조사단 행정문화교육민원과 | I107: 1-11-251 | J107: 의견표명 | K107: 2020
A108: 107 | B108: 2BA-1003-074074 | C108: 10 | D108: 배우자 입국규제 해제 | E108: 2010 | F108: 5 | G108: 행정문화교육민원과 | H108: 국민권익위원회 사무처 고충처리부 사회민원조사단 행정문화교육민원과 | I108: 1-11-251 | J108: 의견표명 | K108: 2020
A109: 108 | B109: 2AA-1004-033795 | C109: 10 | D109: 여권 영문 성 변경 | E109: 2010 | F109: 5 | G109: 행정문화교육민원과 | H109: 국민권익위원회 사무처 고충처리부 사회민원조사단 행정문화교육민원과 | I109: 1-11-251 | J109: 의견표명 | K109: 2020
A110: 109 | B110: 2CA-1008-046699 | C110: 10 | D110: 배우자 입국금지 규제 해제 | E110: 2010 | F110: 5 | G110: 행정문화교육민원과 | H110: 국민권익위원회 사무처 고충처리부 사회민원조사단 행정문화교육민원과 | I110: 1-11-251 | J110: 의견표명 | K110: 2020
A111: 110 | B111: 2CA-0912-051629 | C111: 10 | D111: 주민등록 주소변동기록 정정 | E111: 2010 | F111: 2 | G111: 행정문화교육민원과 | H111: 국민권익위원회 사무처 고충처리국 행정문화교육민원과 | I111: 1-11-244 | J111: 시정권고 | K111: 2020
A112: 111 | B112: 2BA-0908-078188 | C112: 10 | D112: 행정재산 용도폐지 및 매각에 대한 재심의 결정 | E112: 2010 | F112: 2 | G112: 행정문화교육민원과 | H112: 국민권익위원회 사무처 고충처리국 행정문화교육민원과 | I112: 1-11-244 | J112: 의견표명 | K112: 2020
A113: 112 | B113: 2AA-1008-089320 | C113: 10 | D113: 교원선택가산점 인정 | E113: 2010 | F113: 2 | G113: 행정문화교육민원과 | H113: 국민권익위원회 사무처 고충처리국 행정문화교육민원과 | I113: 1-11-244 | J113: 의견표명 | K113: 2020
A114: 113 | B114: 2AA-1105-117703 | C114: 10 | D114: 등록금 반환 | E114: 2011 | F114: 2 | G114: 행정문화교육민원과 | H114: 국민권익위원회 사무처 고충처리국 행정문화교육민원과 | I114: 1-11-244 | J114: 의견표명 | K114: 2021
A115: 114 | B115: 2CA-1107-128027 | C115: 10 | D115: 도로사용 부당이득금 반환 | E115: 2011 | F115: 2 | G115: 행정문화교육민원과 | H115: 국민권익위원회 사무처 고충처리국 행정문화교육민원과 | I115: 1-11-244 | J115: 시정권고 | K115: 2021
A116: 115 | B116: 2BA-1108-229329 | C116: 10 | D116: 농수로 편입 사유지 보상 | E116: 2011 | F116: 2 | G116: 행정문화교육민원과 | H116: 국민권익위원회 사무처 고충처리국 행정문화교육민원과 | I116: 1-11-244 | J116: 시정권고 | K116: 2021
A117: 116 | B117: 2CA-1007-024854 | C117: 10 | D117: 과징금 감경 | E117: 2010 | F117: 4 | G117: 행정문화교육민원과 | H117: 국민권익위원회 사무처 고충처리국 행정문화교육민원과 | I117: 1-11-244 | J117: 의견표명 | K117: 2020
A118: 117 | B118: 2CA-1003-043988 | C118: 10 | D118: 온천공 보호구역 지정 | E118: 2010 | F118: 4 | G118: 행정문화교육민원과 | H118: 국민권익위원회 사무처 고충처리국 행정문화교육민원과 | I118: 1-11-244 | J118: 의견표명 | K118: 2020
A119: 118 | B119: 2BA-1004-035676 | C119: 10 | D119: 시유지 매각 | E119: 2010 | F119: 4 | G119: 행정문화교육민원과 | H119: 국민권익위원회 사무처 고충처리국 행정문화교육민원과 | I119: 1-11-244 | J119: 의견표명 | K119: 2020
A120: 119 | B120: 2BA-1007-062833 | C120: 10 | D120: 나로호 발사 피해 보상 | E120: 2010 | F120: 4 | G120: 행정문화교육민원과 | H120: 국민권익위원회 사무처 고충처리국 행정문화교육민원과 | I120: 1-11-244 | J120: 의견표명 | K120: 2020
A121: 120 | B121: 2BA-1006-080380 | C121: 5 | D121: 도시관리계획 변경 요구등 | E121: 2010 | F121: 8 | G121: 행정문화교육민원과 | H121: 국민권익위원회 사무처 고충처리부 사회민원조사단 행정문화교육민원과 | I121: 1-11-253 | J121: 기각 | K121: 2015
A122: 121 | B122: 2BA-0912-064550 | C122: 5 | D122: 도시관리계획 변경 요구등 | E122: 2010 | F122: 8 | G122: 행정문화교육민원과 | H122: 국민권익위원회 사무처 고충처리부 사회민원조사단 행정문화교육민원과 | I122: 1-11-253 | J122: 기각 | K122: 2015
A123: 122 | B123: 2BA-1008-029132 | C123: 5 | D123: 도시관리계획 변경 요구등 | E123: 2010 | F123: 8 | G123: 행정문화교육민원과 | H123: 국민권익위원회 사무처 고충처리부 사회민원조사단 행정문화교육민원과 | I123: 1-11-253 | J123: 기각 | K123: 2015
A124: 123 | B124: 2BA-1004-067184 | C124: 5 | D124: 도시관리계획 변경 요구등 | E124: 2010 | F124: 8 | G124: 행정문화교육민원과 | H124: 국민권익위원회 사무처 고충처리부 사회민원조사단 행정문화교육민원과 | I124: 1-11-253 | J124: 기각 | K124: 2015
A125: 124 | B125: 2CA-1008-056698 | C125: 10 | D125: 공사대금지급 | E125: 2010 | F125: 7 | G125: 행정문화교육민원과 | H125: 국민권익위원회 사무처 고충처리국 행정문화교육민원과 | I125: 1-11-244 | J125: 의견표명 | K125: 2020
A126: 125 | B126: 2CA-1010-083583 | C126: 10 | D126: 공유재산 매수금 연체료 이의 | E126: 2010 | F126: 7 | G126: 행정문화교육민원과 | H126: 국민권익위원회 사무처 고충처리국 행정문화교육민원과 | I126: 1-11-244 | J126: 시정권고 | K126: 2020
A127: 126 | B127: 2BA-1011-155715 | C127: 10 | D127: 계약기간 연장 | E127: 2010 | F127: 7 | G127: 행정문화교육민원과 | H127: 국민권익위원회 사무처 고충처리국 행정문화교육민원과 | I127: 1-11-244 | J127: 시정권고 | K127: 2020
A128: 127 | B128: 2CA-1012-096795 | C128: 10 | D128: 온천개발 예정지구 주택증개축허용 | E128: 2010 | F128: 7 | G128: 행정문화교육민원과 | H128: 국민권익위원회 사무처 고충처리국 행정문화교육민원과 | I128: 1-11-244 | J128: 시정권고 | K128: 2020
A129: 128 | B129: ㅡ | C129: 10 | D129: 지적측량수수료 체계개선 등 | E129: 2008 | F129: 5 | G129: 행정문화교육민원과 | H129: 국민권익위원회 사무처 고충처리국 행정문화교육민원과 | I129: 1-11-244 | J129: 제도개선권고 | K129: 2018
A130: 129 | B130: 2CA-0912-011473 | C130: 5 | D130: 등록사항정정에 대한 재심의 결정 | E130: 2010 | F130: 5 | G130: 행정문화교육민원과 | H130: 국민권익위원회 사무처 고충처리국 행정문화교육민원과 | I130: 1-11-244 | J130: 각하 | K130: =LEFT(E130,4)+C130 -> 2015
A131: 130 | B131: 2BA-1005-020177 | C131: 10 | D131: 등록사항정정 | E131: 2010 | F131: 5 | G131: 행정문화교육민원과 | H131: 국민권익위원회 사무처 고충처리국 행정문화교육민원과 | I131: 1-11-244 | J131: 시정권고 | K131: 2020
A132: 131 | B132: 2BA-1005-020177 | C132: 10 | D132: 등록사항정정 | E132: 2010 | F132: 5 | G132: 행정문화교육민원과 | H132: 국민권익위원회 사무처 고충처리국 행정문화교육민원과 | I132: 1-11-244 | J132: 시정권고 | K132: 2020
A133: 132 | B133: 2BA-1005-068473 | C133: 10 | D133: 지적정리 및 변상금 부과 이의 | E133: 2010 | F133: 5 | G133: 행정문화교육민원과 | H133: 국민권익위원회 사무처 고충처리국 행정문화교육민원과 | I133: 1-11-244 | J133: 의견표명 | K133: 2020
A134: 133 | B134: 2BA-1005-068473 | C134: 10 | D134: 지적정리 및 변상금 부과 이의 | E134: 2010 | F134: 5 | G134: 행정문화교육민원과 | H134: 국민권익위원회 사무처 고충처리국 행정문화교육민원과 | I134: 1-11-244 | J134: 의견표명 | K134: 2020
A135: 134 | B135: 2CA-1006-089604 | C135: 10 | D135: 지목변경에 대한 재심의 결정 | E135: 2010 | F135: 5 | G135: 행정문화교육민원과 | H135: 국민권익위원회 사무처 고충처리국 행정문화교육민원과 | I135: 1-11-244 | J135: 시정권고 | K135: 2020
A136: 135 | B136: 2AA-1103-184274 | C136: 10 | D136: 농로 포장 | E136: 2010 | F136: 5 | G136: 행정문화교육민원과 | H136: 국민권익위원회 사무처 고충처리국 행정문화교육민원과 | I136: 1-11-244 | J136: 의견표명 | K136: 2020
A137: 136 | B137: 2AA-1105-043338 | C137: 10 | D137: 옥외광고물 설치 허가 | E137: 2010 | F137: 5 | G137: 행정문화교육민원과 | H137: 국민권익위원회 사무처 고충처리국 행정문화교육민원과 | I137: 1-11-244 | J137: 시정권고 | K137: 2020
A138: 137 | B138: 2AA-1104-041662 | C138: 10 | D138: 대부료 환불 | E138: 2010 | F138: 5 | G138: 행정문화교육민원과 | H138: 국민권익위원회 사무처 고충처리국 행정문화교육민원과 | I138: 1-11-244 | J138: 의견표명 | K138: 2020
A139: 138 | B139: 2AA-1107-155890 | C139: 10 | D139: 호봉획정 이의 | E139: 2011 | F139: 5 | G139: 행정문화교육민원과 | H139: 국민권익위원회 사무처 고충처리국 행정문화교육민원과 | I139: 1-11-244 | J139: 의견표명 | K139: 2021
A140: 139 | B140: 2AA-1110-092948 2AA-1110-101116 | C140: 10 | D140: 학급감축 행정처분 철회 | E140: 2011 | F140: 5 | G140: 행정문화교육민원과 | H140: 국민권익위원회 사무처 고충처리국 행정문화교육민원과 | I140: 1-11-244 | J140: 의견표명 | K140: 2021
A141: 140 | B141: 2BA-1008-002713 | C141: 10 | D141: 잔여지매수 | E141: 2011 | F141: 5 | G141: 행정문화교육민원과 | H141: 국민권익위원회 사무처 고충처리국 행정문화교육민원과 | I141: 1-11-244 | J141: 시정권고 | K141: 2021
A142: 141 | B142: 2AA-1105-149870 | C142: 10 | D142: 과태료 환급 거부 이의 | E142: 2011 | F142: 1 | G142: 행정문화교육민원과 | H142: 국민권익위원회 사무처 고충처리국 행정문화교육민원과 | I142: 1-11-244 | J142: 시정권고 | K142: 2021
A143: 142 | B143: 2BA-1107-136132 | C143: 10 | D143: 잔여지 매수 | E143: 2011 | F143: 1 | G143: 행정문화교육민원과 | H143: 국민권익위원회 사무처 고충처리국 행정문화교육민원과 | I143: 1-11-244 | J143: 의견표명 | K143: 2021
A144: 143 | B144: 2AA-1109-199569 | C144: 10 | D144: 정보 비공개처분 이의 | E144: 2011 | F144: 1 | G144: 행정문화교육민원과 | H144: 국민권익위원회 사무처 고충처리국 행정문화교육민원과 | I144: 1-11-244 | J144: 시정권고 | K144: 2021
A145: 144 | B145: 2AA-1107-063203 | C145: 10 | D145: 도로사용료 지급 등 | E145: 2011 | F145: 1 | G145: 행정문화교육민원과 | H145: 국민권익위원회 사무처 고충처리국 행정문화교육민원과 | I145: 1-11-244 | J145: 시정권고 | K145: 2021
A146: 145 | B146: 2AA-1105-106967 | C146: 10 | D146: 정보공개 거부 이의 | E146: 2011 | F146: 1 | G146: 행정문화교육민원과 | H146: 국민권익위원회 사무처 고충처리국 행정문화교육민원과 | I146: 1-11-244 | J146: 시정권고 | K146: 2021
A147: 146 | B147: 2AA-1110-180466 | C147: 10 | D147: 정보 부분공개처분 이의 | E147: 2011 | F147: 1 | G147: 행정문화교육민원과 | H147: 국민권익위원회 사무처 고충처리국 행정문화교육민원과 | I147: 1-11-244 | J147: 시정권고 | K147: 2021
A148: 147 | B148: 2AA-1103-015230 | C148: 10 | D148: 공유재산 사용요율 조정 등 | E148: 2011 | F148: 1 | G148: 행정문화교육민원과 | H148: 국민권익위원회 사무처 고충처리국 행정문화교육민원과 | I148: 1-11-244 | J148: 의견표명 | K148: 2021
A149: 148 | B149: 2BA-1107-003807 | C149: 10 | D149: 하자담보책임기간 조정 재심의 결정 | E149: 2011 | F149: 2 | G149: 행정문화교육민원과 | H149: 국민권익위원회 사무처 고충처리국 행정문화교육민원과 | I149: 1-11-245 | J149: 의견표명 | K149: 2021
A150: 149 | B150: 2CA-1109-127537 | C150: 10 | D150: 하천 편입토지 보상 | E150: 2011 | F150: 2 | G150: 행정문화교육민원과 | H150: 국민권익위원회 사무처 고충처리국 행정문화교육민원과 | I150: 1-11-245 | J150: 시정권고 | K150: 2021
A151: 150 | B151: 2BA-1111-056381 | C151: 10 | D151: 대부계약 해지에 따른 지장물 보상 | E151: 2011 | F151: 2 | G151: 행정문화교육민원과 | H151: 국민권익위원회 사무처 고충처리국 행정문화교육민원과 | I151: 1-11-245 | J151: 시정권고 | K151: 2021
A152: 151 | B152: 2BA-1105-145750 | C152: 10 | D152: 연병장 등으로 사용되는 사유지 보상 | E152: 2011 | F152: 2 | G152: 행정문화교육민원과 | H152: 국민권익위원회 사무처 고충처리국 행정문화교육민원과 | I152: 1-11-245 | J152: 의견표명 | K152: 2021
A153: 152 | B153: 2AA-1109-170173 2BA-1202-060198 | C153: 10 | D153: 각궁(角弓) 공인 거부 이의 | E153: 2011 | F153: 2 | G153: 행정문화교육민원과 | H153: 국민권익위원회 사무처 고충처리국 행정문화교육민원과 | I153: 1-11-245 | J153: 의견표명 | K153: 2021
A154: 153 | B154: 2AA-1109-081962 | C154: 10 | D154: 구거 교량 확장 등 | E154: 2011 | F154: 2 | G154: 행정문화교육민원과 | H154: 국민권익위원회 사무처 고충처리국 행정문화교육민원과 | I154: 1-11-245 | J154: 의견표명 | K154: 2021
A155: 154 | B155: 2AA-1107-047718 | C155: 10 | D155: 배우자 사증발급 거부 이의 | E155: 2011 | F155: 7 | G155: 행정문화교육민원과 | H155: 국민권익위원회 사무처 고충처리국 행정문화교육민원과 | I155: 1-11-245 | J155: 의견표명 | K155: 2021
A156: 155 | B156: 2AA-1109-154024 | C156: 10 | D156: 베트남 배우자 사증 발급 | E156: 2011 | F156: 7 | G156: 행정문화교육민원과 | H156: 국민권익위원회 사무처 고충처리국 행정문화교육민원과 | I156: 1-11-245 | J156: 의견표명 | K156: 2021
A157: 156 | B157: 2AA-1105-174726 | C157: 10 | D157: 배우자 사증발급 거부 이의 | E157: 2011 | F157: 7 | G157: 행정문화교육민원과 | H157: 국민권익위원회 사무처 고충처리국 행정문화교육민원과 | I157: 1-11-245 | J157: 의견표명 | K157: 2021
A158: 157 | B158: 2AA-1111-093083 | C158: 10 | D158: 중국인 배우자 사증발급 거부 이의 | E158: 2011 | F158: 7 | G158: 행정문화교육민원과 | H158: 국민권익위원회 사무처 고충처리국 행정문화교육민원과 | I158: 1-11-245 | J158: 의견표명 | K158: 2021
A159: 158 | B159: 2BA-1102-130419 | C159: 10 | D159: 아들 입국금지 해제 | E159: 2011 | F159: 7 | G159: 행정문화교육민원과 | H159: 국민권익위원회 사무처 고충처리국 행정문화교육민원과 | I159: 1-11-245 | J159: 의견표명 | K159: 2021
A160: 159 | B160: 2BA-1102-129490 | C160: 10 | D160: 공유토지 분할 | E160: 2011 | F160: 7 | G160: 행정문화교육민원과 | H160: 국민권익위원회 사무처 고충처리국 행정문화교육민원과 | I160: 1-11-245 | J160: 시정권고 | K160: 2021
A161: 160 | B161: 2AA-1102-103782 | C161: 10 | D161: 잔여지 매수 | E161: 2011 | F161: 7 | G161: 행정문화교육민원과 | H161: 국민권익위원회 사무처 고충처리국 행정문화교육민원과 | I161: 1-11-245 | J161: 의견표명 | K161: 2021
A162: 161 | B162: 2CA-1101-012223 | C162: 10 | D162: 구거부지 점용허가 | E162: 2011 | F162: 4 | G162: 행정문화교육민원과 | H162: 국민권익위원회 사무처 고충처리국 행정문화교육민원과 | I162: 1-11-245 | J162: 시정권고 | K162: 2021
A163: 162 | B163: 2BA-1104-118969 | C163: 10 | D163: 영농손실보상 | E163: 2011 | F163: 4 | G163: 행정문화교육민원과 | H163: 국민권익위원회 사무처 고충처리국 행정문화교육민원과 | I163: 1-11-245 | J163: 시정권고 | K163: 2021
A164: 163 | B164: 2AA-1106-056271 | C164: 10 | D164: 관광지 조성계획 변경 | E164: 2011 | F164: 4 | G164: 행정문화교육민원과 | H164: 국민권익위원회 사무처 고충처리국 행정문화교육민원과 | I164: 1-11-245 | J164: 시정권고 | K164: 2021
A165: 164 | B165: 2AA-1107-009148 | C165: 10 | D165: 변상금 체납 연체료 부과 이의 | E165: 2011 | F165: 4 | G165: 행정문화교육민원과 | H165: 국민권익위원회 사무처 고충처리국 행정문화교육민원과 | I165: 1-11-245 | J165: 의견표명 | K165: 2021
A166: 165 | B166: 2BA-1108-171557 | C166: 10 | D166: 사유지 사용료 지금 | E166: 2011 | F166: 4 | G166: 행정문화교육민원과 | H166: 국민권익위원회 사무처 고충처리국 행정문화교육민원과 | I166: 1-11-245 | J166: 의견표명 | K166: 2021
A167: 166 | B167: 2BA-1111-068025 | C167: 10 | D167: 변상금 산정 이의 | E167: 2011 | F167: 4 | G167: 행정문화교육민원과 | H167: 국민권익위원회 사무처 고충처리국 행정문화교육민원과 | I167: 1-11-245 | J167: 시정권고 | K167: 2021
A168: 167 | B168: 2CA-1103-044682 | C168: 10 | D168: 공유재산 매각 | E168: 2011 | F168: 1 | G168: 행정문화교육민원과 | H168: 국민권익위원회 사무처 고충처리국 행정문화교육민원과 | I168: 1-11-245 | J168: 의견표명 | K168: 2021
A169: 168 | B169: 2BA-1111-042419 | C169: 10 | D169: 예치금반환 | E169: 2011 | F169: 1 | G169: 행정문화교육민원과 | H169: 국민권익위원회 사무처 고충처리국 행정문화교육민원과 | I169: 1-11-245 | J169: 의견표명 | K169: 2021
A170: 169 | B170: 2BA-1111-133236 | C170: 10 | D170: 하천정비사업 영농손실 보상 | E170: 2011 | F170: 1 | G170: 행정문화교육민원과 | H170: 국민권익위원회 사무처 고충처리국 행정문화교육민원과 | I170: 1-11-245 | J170: 시정권고 | K170: 2021
A171: 170 | B171: 2AA-1105-117703 | C171: 10 | D171: 등록금반환 | E171: 2011 | F171: 1 | G171: 행정문화교육민원과 | H171: 국민권익위원회 사무처 고충처리국 행정문화교육민원과 | I171: 1-11-245 | J171: 의견표명 | K171: 2021
A172: 171 | B172: 2BA-1107-125276 | C172: 10 | D172: 공매토지 대금 감액 요구 | E172: 2011 | F172: 2 | G172: 행정문화교육민원과 | H172: 국민권익위원회 사무처 고충처리국 행정문화교육민원과 | I172: 1-11-245 | J172: 의견표명 | K172: 2021
A173: 172 | B173: 2BA-1108-178670 | C173: 10 | D173: 변상금 조정 요구 | E173: 2011 | F173: 2 | G173: 행정문화교육민원과 | H173: 국민권익위원회 사무처 고충처리국 행정문화교육민원과 | I173: 1-11-245 | J173: 의견표명 | K173: 2021
A174: 173 | B174: 2AA-1103-043035 2AA-1103-034094 | C174: 10 | D174: 시 도간 전보교류 불허 이의 | E174: 2011 | F174: 2 | G174: 행정문화교육민원과 | H174: 국민권익위원회 사무처 고충처리국 행정문화교육민원과 | I174: 1-11-245 | J174: 의견표명 | K174: 2021
A175: 174 | B175: 2CA-1109-001024 | C175: 10 | D175: 구정홍보관 철거 요구 부당 | E175: 2011 | F175: 2 | G175: 행정문화교육민원과 | H175: 국민권익위원회 사무처 고충처리국 행정문화교육민원과 | I175: 1-11-245 | J175: 의견표명 | K175: 2021
A176: 175 | B176: 2BA-1108-022720 | C176: 10 | D176: 구상금 청구 이의 | E176: 2011 | F176: 3 | G176: 행정문화교육민원과 | H176: 국민권익위원회 사무처 고충처리국 행정문화교육민원과 | I176: 1-11-245 | J176: 시정권고 | K176: 2021
A177: 176 | B177: 2BA-1106-154689 | C177: 10 | D177: 무단점유한 구거부지 원상회복 | E177: 2011 | F177: 3 | G177: 행정문화교육민원과 | H177: 국민권익위원회 사무처 고충처리국 행정문화교육민원과 | I177: 1-11-245 | J177: 시정권고 | K177: 2021
A178: 177 | B178: 2AA-1104-150296 | C178: 10 | D178: 통학버스 운행 요구 등 | E178: 2011 | F178: 3 | G178: 행정문화교육민원과 | H178: 국민권익위원회 사무처 고충처리국 행정문화교육민원과 | I178: 1-11-245 | J178: 시정권고 | K178: 2021
A179: 178 | B179: 2BA-1104-047223 | C179: 10 | D179: 삼랑성 현상변경 기준안 조정 | E179: 2011 | F179: 3 | G179: 행정문화교육민원과 | H179: 국민권익위원회 사무처 고충처리국 행정문화교육민원과 | I179: 1-11-245 | J179: 의견표명 | K179: 2021
A180: 179 | B180: 2AA-1208-095837 | C180: 10 | D180: 퇴직교원 정부포상 추천 요구 | E180: 2012 | F180: 8 | G180: 행정문화교육민원과 | H180: 국민권익위원회 사무처 고충처리국 행정문화교육민원과 | I180: 1-11-245 | J180: 의견표명 | K180: 2022
A181: 180 | B181: 2CA-1206-007333 | C181: 10 | D181: 토지분할 | E181: 2012 | F181: 8 | G181: 행정문화교육민원과 | H181: 국민권익위원회 사무처 고충처리국 행정문화교육민원과 | I181: 1-11-245 | J181: 의견표명 | K181: 2022
A182: 181 | B182: 2BA-1208-111177 | C182: 10 | D182: 토지합병 | E182: 2012 | F182: 8 | G182: 행정문화교육민원과 | H182: 국민권익위원회 사무처 고충처리국 행정문화교육민원과 | I182: 1-11-245 | J182: 의견표명 | K182: 2022
A183: 182 | B183: 2AA-1208-169675 | C183: 10 | D183: 토지합병 | E183: 2012 | F183: 8 | G183: 행정문화교육민원과 | H183: 국민권익위원회 사무처 고충처리국 행정문화교육민원과 | I183: 1-11-245 | J183: 시정권고 | K183: 2022
A184: 183 | B184: 2CA-1112-106256 | C184: 10 | D184: 초과근무수당 지급요구 | E184: 2012 | F184: 6 | G184: 행정문화교육민원과 | H184: 국민권익위원회 사무처 고충처리국 행정문화교육민원과 | I184: 1-11-245 | J184: 의견표명 | K184: 2022
A185: 184 | B185: 2CA-1209-182008 | C185: 10 | D185: 광고료 감면 등 | E185: 2012 | F185: 1 | G185: 행정문화교육민원과 | H185: 국민권익위원회 사무처 고충처리국 행정문화교육민원과 | I185: 1-11-246 | J185: 의견표명 | K185: 2022
A186: 185 | B186: 2BA-1206-271012 | C186: 10 | D186: 소도읍 육성사업 이의 | E186: 2012 | F186: 1 | G186: 행정문화교육민원과 | H186: 국민권익위원회 사무처 고충처리국 행정문화교육민원과 | I186: 1-11-246 | J186: 시정권고 | K186: 2022
A187: 186 | B187: 2BA-1204-095690 | C187: 10 | D187: 학교부지 사용료 감액요청 | E187: =IF(ISBLANK(B187)=1,"",("20"&MID(B187,5,2))) -> 2012 | F187: 2 | G187: 행정문화교육민원과 | H187: 국민권익위원회 사무처 고충처리국 행정문화교육민원과 | I187: 1-11-246 | J187: 의견표명 | K187: 2022
A188: 187 | B188: 2BA-1112-048176 | C188: 10 | D188: 도로점용 변상금 부과 이의 | E188: 2012 | F188: 2 | G188: 행정문화교육민원과 | H188: 국민권익위원회 사무처 고충처리국 행정문화교육민원과 | I188: 1-11-246 | J188: 시정권고 | K188: 2022
A189: 188 | B189: 2BA-1110-120848 | C189: 10 | D189: 지적도상 도로 원상회복 요구 | E189: 2012 | F189: 2 | G189: 행정문화교육민원과 | H189: 국민권익위원회 사무처 고충처리국 행정문화교육민원과 | I189: 1-11-246 | J189: 의견표명 | K189: 2022
A190: 189 | B190: 2AA-1204-157168 | C190: 10 | D190: 현황도로 통행불편 해소 | E190: 2012 | F190: 2 | G190: 행정문화교육민원과 | H190: 국민권익위원회 사무처 고충처리국 행정문화교육민원과 | I190: 1-11-246 | J190: 의견표명 | K190: 2022
A191: 190 | B191: 2CA-1205-135289 | C191: 10 | D191: 학원 교습과정 변경등록 불허 이의 | E191: 2012 | F191: 2 | G191: 행정문화교육민원과 | H191: 국민권익위원회 사무처 고충처리국 행정문화교육민원과 | I191: 1-11-246 | J191: 의견표명 | K191: 2022
A192: 191 | B192: 2AA-1206-191804외 5건 | C192: 10 | D192: 수원 신풍초등학교 이전 반대 | E192: 2012 | F192: 2 | G192: 행정문화교육민원과 | H192: 국민권익위원회 사무처 고충처리국 행정문화교육민원과 | I192: 1-11-246 | J192: 의견표명 | K192: 2022
A193: 192 | B193: 2AA-1208-275561 | C193: 10 | D193: 교습소 운영 불허가 해결요청 | E193: 2012 | F193: 2 | G193: 행정문화교육민원과 | H193: 국민권익위원회 사무처 고충처리국 행정문화교육민원과 | I193: 1-11-246 | J193: 의견표명 | K193: 2022
A194: 193 | B194: 2AA-1210-141686 | C194: 10 | D194: 과태료 부과 처분 이의 | E194: 2012 | F194: 2 | G194: 행정문화교육민원과 | H194: 국민권익위원회 사무처 고충처리국 행정문화교육민원과 | I194: 1-11-246 | J194: 의견표명 | K194: =LEFT(E194,4)+C194 -> 2022
A195: 194 | B195: 2BA-1207-042666 | C195: 10 | D195: 연구비 회수 부당에 대한 재심의 결정 | E195: 2012 | F195: 1 | G195: 행정문화교육민원과 | H195: 국민권익위원회 사무처 고충처리국 행정문화교육민원과 | I195: 1-11-246 | J195: 의견표명 | K195: 2022
A196: 195 | B196: 2BA-1202-066045 | C196: 10 | D196: 변상금 부과 이의 | E196: 2012 | F196: 1 | G196: 행정문화교육민원과 | H196: 국민권익위원회 사무처 고충처리국 행정문화교육민원과 | I196: 1-11-246 | J196: 시정권고 | K196: 2022
A197: 196 | B197: 2AA-1205-063920 | C197: 10 | D197: 골프장 건설공사로 폐쇄된 통행로 확보등 | E197: 2012 | F197: 1 | G197: 행정문화교육민원과 | H197: 국민권익위원회 사무처 고충처리국 행정문화교육민원과 | I197: 1-11-246 | J197: 시정권고 | K197: 2022
A198: 197 | B198: 2BA-1206-050208 | C198: 10 | D198: 장기간 미개발된 온천지구 조치 요구 | E198: 2012 | F198: 1 | G198: 행정문화교육민원과 | H198: 국민권익위원회 사무처 고충처리국 행정문화교육민원과 | I198: 1-11-246 | J198: 의견표명 | K198: 2022
A199: 198 | B199: 2AA-1207-155007 | C199: 10 | D199: 강제동원 피해자 위로금 신청 | E199: 2012 | F199: 2 | G199: 행정문화교육민원과 | H199: 국민권익위원회 사무처 고충처리국 행정문화교육민원과 | I199: 1-11-246 | J199: 제도개선권고 | K199: 2022
A200: 199 | B200: 2CA-1208-058828 | C200: 10 | D200: 장애인올림픽 양궁 국가대표 코치 퇴촌 결정 이의 | E200: 2012 | F200: 2 | G200: 행정문화교육민원과 | H200: 국민권익위원회 사무처 고충처리국 행정문화교육민원과 | I200: 1-11-246 | J200: 시정권고, 제도개선권고 | K200: 2022
... 4300 more rows

Sheet Sheet2

Sheet Sheet3
